Cogmind - Beta 9.6 *** ADVENTURER MODE // 2020.05.19 @ 19:40:26 Player: core_nxt Result: Self-destructed Performance ------------- Evolutions (2) 1000 Regions Visited (5) 1000 Robots Destroyed (21) 105 Value Destroyed (490) 490 Prototype IDs (22) 440 Alien Tech Used (0) 0 Bonus (280) 280 TOTAL SCORE: 3315 Bonus ------- Follower Combat Kills 14 Aligned with FarCom 300 Friendly Fire -34 Cogmind --------- Core Integrity 550/550 Matter 246/300 Energy 160/160 System Corruption 0% Temperature Cool (0) Movement Walking (180) Ox2 Location -8/Materials Parts ------- > --- POWER (1) -------- Light Nuclear Core > --- PROPULSION (3) --- Aluminum Leg Aluminum Leg Carbon-fiber Leg > --- UTILITY (5) ------ Humpback Targeting Computer > --- WEAPON (2) ------- Light Assault Rifle Light Assault Rifle > --- INVENTORY (24) --- Light Ion Engine Large Storage Unit Large Storage Unit Humpback Humpback Humpback Improved Targeting Computer Light Armor Plating EM Pulse Gun Small Laser High-powered Shotgun Rocket Launcher Peak State ------------ > --- POWER ------------ Light Nuclear Core > --- PROPULSION ------- Aluminum Leg Aluminum Leg Carbon-fiber Leg > --- UTILITY ---------- Humpback Targeting Computer > --- WEAPON ----------- Light Assault Rifle Light Assault Rifle > --- INVENTORY -------- Light Ion Engine Large Storage Unit Large Storage Unit Humpback Humpback Humpback Improved Targeting Computer Light Armor Plating Chronowheel EM Pulse Gun Small Laser High-powered Shotgun Rocket Launcher [Rating: 16] Favorites ----------- Power Ion Engine Engine Ion Engine Power Core Light Nuclear Core Propulsion Aluminum Leg Leg Aluminum Leg Utility Large Storage Unit Storage Large Storage Unit Processor Targeting Computer Weapon Light Assault Rifle Energy Gun EM Pulse Gun Ballistic Gun Light Assault Rifle Build | -11 -10 -10 -10 -9 -8 ------- Run | Scr Mat Min Exi Min Mat Slots Evolved 4 | . . . . . 4 Power . | . . . . . . Propulsion 1 | . . . . . 1 Utility 3 | . . . . . 3 Weapon . | . . . . . . Parts Attached 8 | . 3 . . 3 2 Power 1 | . . . . 1 . Engine . | . . . . . . Core 1 | . . . . 1 . Reactor . | . . . . . . Propulsion 2 | . . . . 1 1 Treads . | . . . . . . Leg 2 | . . . . 1 1 Wheel . | . . . . . . Hover . | . . . . . . Flight . | . . . . . . Utility 4 | . 2 . . 1 1 Device . | . . . . . . Storage 3 | . 2 . . 1 . Processor 1 | . . . . . 1 Hackware . | . . . . . . Protection . | . . . . . . Artifact . | . . . . . . Weapon 1 | . 1 . . . . Energy Gun . | . . . . . . Energy Cannon . | . . . . . . Ballistic Gun 1 | . 1 . . . . Ballistic Cannon . | . . . . . . Launcher . | . . . . . . Special Weapon . | . . . . . . Impact Weapon . | . . . . . . Slashing Weapon . | . . . . . . Piercing Weapon . | . . . . . . Special Melee Weapon . | . . . . . . Unidentified Prototypes . | . . . . . . Parts Lost 1 | . 1 . . . . Power . | . . . . . . Propulsion . | . . . . . . Utility . | . . . . . . Weapon 1 | . 1 . . . . Highest Loss Streak 1 | . 1 . . . . Average Slot Usage (%) 96 | . 99 100 100 98 63 Engine 10 | . 14 14 14 5 . Core 2 | . . . . 8 9 Leg 27 | . 28 28 28 28 27 Storage 25 | . 27 28 28 26 9 Energy Gun 2 | . 9 . . . . Ballistic Gun 24 | . 18 28 28 28 18 Naked Turns . | . . . . . . Heaviest Build 87 | 12 40 39 39 87 87 Greatest Support 35 | 20 20 20 20 25 35 Greatest Overweight (x) 3 | . 1 1 1 3 2 Average Overweight (x) 1 | . . 1 1 1 2 Largest Inventory Capacity 24 | 6 16 16 16 24 24 Average Capacity 16 | 6 15 16 16 16 24 Most Carried 17 | 5 5 6 15 16 17 Average Carried 10 | 4 3 5 11 14 16 Final Capacity 24 | 6 16 16 16 24 24 Final Carried 16 | 2 5 6 15 16 15 Class Distribution -------------------- 88% | Mutant 11% | Hauler-Mutant Dominant Class ---------------- Mutant | -10/Materials Mutant | -10/Mines Mutant | -10/Exiles Mutant | -9/Mines Hauler-Mutant | -8/Materials Resources | -11 -10 -10 -10 -9 -8 ----------- Run | Scr Mat Min Exi Min Mat Matter Collected 333 | 200 38 . . 95 . Remotely . | . . . . . . Salvage Created 656 | . 310 . . 235 111 Parts 44 | . 21 . . 16 7 Haulers Intercepted . | . . . . . . Recyclers Shooed . | . . . . . . Parts Field Recycled . | . . . . . . Retrieved Matter . | . . . . . . Parts Self-Destructed . | . . . . . . Prevented . | . . . . . . Kills | -11 -10 -10 -10 -9 -8 ------- Run | Scr Mat Min Exi Min Mat Combat Hostiles Destroyed 20 | . 10 . . 8 2 Guns 20 | . 10 . . 8 2 Classes Destroyed 4 | . 3 . . . 1 Watcher 1 | . 1 . . . . Swarmer 11 | . 6 . . 5 . Grunt 7 | . 4 . . 3 . Sentry 2 | . . . . . 2 Best Kill Streak 7 | . 7 . . 3 2 Combat Bots Only 6 | . 6 . . 3 2 Max Kills in Single Turn 2 | . 1 . . 2 1 Gunslinging . | . . . . . . Exploded . | . . . . . . Melee . | . . . . . . Uniques/NPCs Destroyed . | . . . . . . Combat | -11 -10 -10 -10 -9 -8 -------- Run | Scr Mat Min Exi Min Mat Damage Taken 420 | . 254 . . 123 43 Core 30 | . 22 . . 8 . Absorbed by Shields . | . . . . . . Core Remaining (%) 94 | 100 . . . 88 . Volleys Fired 60 | . 34 . . 19 7 Largest 2 | . 2 . . 2 2 Hottest 60 | . 60 . . 40 40 Shots Fired 119 | . 67 . . 38 14 Gun 119 | . 67 . . 38 14 Cannon . | . . . . . . Launcher . | . . . . . . Special . | . . . . . . Kinetic 99 | . 47 . . 38 14 Thermal . | . . . . . . Explosive . | . . . . . . Electromagnetic 20 | . 20 . . . . Robot Hit Streak 49 | . 49 . . 13 15 Robot Miss Streak 2 | . 1 . . 2 1 Penetration Max . | . . . . . . Secondary Targets 2 | . . . . 2 . Max Gunslinging Chain 1 | . . . . 1 . Shots Hit Robots 95 | . 56 . . 27 12 Core Hits 38 | . 17 . . 14 7 Critical Hits . | . . . . . . Critical Kills . | . . . . . . Critical Parts Destroyed . | . . . . . . Melee Attacks . | . . . . . . Impact . | . . . . . . Slashing . | . . . . . . Piercing . | . . . . . . Sneak Attacks . | . . . . . . Combat Hostiles . | . . . . . . Follow-up Attacks . | . . . . . . Damage Inflicted 881 | . 541 . . 244 96 Guns 881 | . 541 . . 244 96 Cannons . | . . . . . . Explosions . | . . . . . . Melee . | . . . . . . Ramming . | . . . . . . Kinetic 633 | . 293 . . 244 96 Thermal . | . . . . . . Explosive . | . . . . . . Electromagnetic 248 | . 248 . . . . Impact . | . . . . . . Slashing . | . . . . . . Piercing . | . . . . . . Highest Corruption . | . . . . . . Average Corruption . | . . . . . . Corruption Purged . | . . . . . . Overload Shots . | . . . . . . Overflow Damage . | . . . . . . Projectiles . | . . . . . . Explosions . | . . . . . . Melee . | . . . . . . Knockbacks . | . . . . . . Impact . | . . . . . . Kinetic . | . . . . . . Secondary . | . . . . . . Self-Inflicted Damage . | . . . . . . Shots . | . . . . . . Rammed . | . . . . . . Targets Rammed . | . . . . . . Kicked . | . . . . . . Crushed . | . . . . . . Highest Temperature 100 | . 100 . . 16 5 Average Temperature 24 | . 32 . . 5 3 Received Heat Transfer 222 | . 150 . . 54 18 Siege Activations . | . . . . . . Robots Corrupted . | . . . . . . Combat Hostiles . | . . . . . . Parts Fried 3 | . 3 . . . . Impact Corruptions . | . . . . . . Robots Melted . | . . . . . . Combat Hostiles . | . . . . . . Parts Melted . | . . . . . . Heat Transferred . | . . . . . . Parts Sabotaged . | . . . . . . Parts Stolen . | . . . . . . Parts Stripped . | . . . . . . Power Chain Reactions . | . . . . . . Missiles Intercepted . | . . . . . . Alert | -11 -10 -10 -10 -9 -8 ------- Run | Scr Mat Min Exi Min Mat Peak Influence 290 | . 290 31 . 220 152 Average Influence 136 | . 160 31 . 146 101 Maximum Alert Level 1 | . 1 . . 1 . Low Security (%) 68 | 100 48 100 . 72 100 Level 1 31 | . 51 . . 27 . Level 2 . | . . . . . . Level 3 . | . . . . . . Level 4 . | . . . . . . Level 5 . | . . . . . . High Security . | . . . . . . Max Security . | . . . . . . Squads Dispatched 2 | . 1 . . . 1 Investigation 1 | . 1 . . . . Extermination . | . . . . . . Reinforcement 1 | . . . . . 1 Assault . | . . . . . . Garrison . | . . . . . . Intercept . | . . . . . . Construction Impeded . | . . . . . . Haulers Reinforced . | . . . . . . Stealth | -11 -10 -10 -10 -9 -8 --------- Run | Scr Mat Min Exi Min Mat Distress Signals 1 | . 1 . . . . Communications Jammed . | . . . . . . Distress Signals . | . . . . . . Times Spotted 29 | . 15 . . 10 4 Peak Tracking Total 7 | . 7 . . 4 3 Tactical Retreats 2 | . 1 . . 1 . Traps | -11 -10 -10 -10 -9 -8 ------- Run | Scr Mat Min Exi Min Mat Traps Triggered 1 | . 1 . . . . Indirectly . | . . . . . . Trap Hack Attempts . | . . . . . . Triggered . | . . . . . . Disarmed . | . . . . . . Reprogrammed . | . . . . . . Reused . | . . . . . . Traps Extracted . | . . . . . . Installed . | . . . . . . Triggered . | . . . . . . Machines | -11 -10 -10 -10 -9 -8 ---------- Run | Scr Mat Min Exi Min Mat Machines Disabled 1 | . . . . 1 . Max in Single Turn . | . . . . . . Machines Sabotaged . | . . . . . . Garrisons Compromised . | . . . . . . Overloaded Fab Kills . | . . . . . . Fab Network Shutdowns . | . . . . . . Hacking | -11 -10 -10 -10 -9 -8 --------- Run | Scr Mat Min Exi Min Mat Machines Accessed 11 | . 5 . 4 . 2 Terminals 7 | . 5 . . . 2 Fabricators . | . . . . . . Repair Stations . | . . . . . . Recycling Units . | . . . . . . Scanalyzers . | . . . . . . Garrison Access . | . . . . . . Total Hacks 66 | . 19 . 41 . 6 Successful 56 | . 11 . 41 . 4 Failed 10 | . 8 . . . 2 Catastrophic 2 | . 2 . . . . Database Lockouts . | . . . . . . Manual 27 | . 19 . 2 . 6 Terminals 25 | . 19 . . . 6 Fabricators . | . . . . . . Repair Stations . | . . . . . . Recycling Units . | . . . . . . Scanalyzers . | . . . . . . Garrison Access . | . . . . . . Terminal Hacks 45 | . 3 . 41 . 1 Record 40 | . . . 40 . . Branch Access Points 2 | . 2 . . . . Terminal Index 2 | . 1 . . . 1 EX-Prototype ID Bank 1 | . . . 1 . . Fabricator Hacks . | . . . . . . Repair Station Hacks . | . . . . . . Recycling Unit Hacks . | . . . . . . Scanalyzer . | . . . . . . Garrison Access Hacks . | . . . . . . Unauthorized Hacks 11 | . 8 . . . 3 Terminals 11 | . 8 . . . 3 Track 4 | . 3 . . . 1 Botnet 7 | . 5 . . . 2 Fabricators . | . . . . . . Repair Stations . | . . . . . . Recycling Units . | . . . . . . Scanalyzers . | . . . . . . Garrison Access . | . . . . . . Data Cores Recovered . | . . . . . . Used . | . . . . . . Hacking Detections 6 | . 5 . . . 1 Full Trace Events . | . . . . . . Feedback Events . | . . . . . . Feedback Blocked . | . . . . . . Robot Schematics Acquired . | . . . . . . Robots Built . | . . . . . . Matter . | . . . . . . Time . | . . . . . . Total Robot Build Rating . | . . . . . . Part Schematics Acquired . | . . . . . . Parts Built . | . . . . . . Matter . | . . . . . . Time . | . . . . . . Total Part Build Rating . | . . . . . . Parts Repaired . | . . . . . . Time . | . . . . . . Parts Recycled . | . . . . . . Recycled Matter . | . . . . . . Retrieved Matter . | . . . . . . Retrieved Components . | . . . . . . Parts Scanalyzed . | . . . . . . Part Schematics Acquired . | . . . . . . Parts Damaged . | . . . . . . Bothacking | -11 -10 -10 -10 -9 -8 ------------ Run | Scr Mat Min Exi Min Mat Used RIF Installer . | . . . . . . Robots Hacked . | . . . . . . Non-combat . | . . . . . . Combat . | . . . . . . Robot Hacks Applied . | . . . . . . Relay Couplers Released . | . . . . . . Robots Rewired . | . . . . . . Allies Hacked . | . . . . . . Hacks Repelled . | . . . . . . Allies | -11 -10 -10 -10 -9 -8 -------- Run | Scr Mat Min Exi Min Mat Total Allies 1 | . . . . 1 . Largest Group 1 | . . . . 1 . Highest-Rated Group 31 | . . . . 31 . Highest-Rated Ally 31 | . . . . 31 . Total Orders . | . . . . . . Ally Attacks 10 | . . . . 10 . Total Damage 106 | . . . . 106 . Kills 2 | . . . . 2 . Allies Corrupted . | . . . . . . Allies Melted . | . . . . . . Intel | -11 -10 -10 -10 -9 -8 ------- Run | Scr Mat Min Exi Min Mat Robot Analysis Total . | . . . . . . Derelict Logs Recovered . | . . . . . . Drone Launches . | . . . . . . Drone Recoveries . | . . . . . . Exploration | -11 -10 -10 -10 -9 -8 ------------- Run | Scr Mat Min Exi Min Mat Turns Passed 1954 | 2 494 85 817 387 169 Spaces Moved 1111 | 1 253 57 542 181 77 Core . | . . . . . . Treads . | . . . . . . Legs 1111 | 1 253 57 542 181 77 Wheels . | . . . . . . Hover . | . . . . . . Flight . | . . . . . . Fastest Speed 120 | 120 120 150 150 150 180 Average Speed 152 | 120 147 150 150 155 180 Slowest Speed 210 | 120 150 150 150 210 180 Overloaded Moves . | . . . . . . Propulsion Burnouts . | . . . . . . Robots Hopped . | . . . . . . Cave-ins Triggered . | . . . . . . Time Travels 1 | . . . . . 1 Exploration Rate (%) 34 | 2 57 15 91 32 9 Regions Visited 5 Branch Regions 3 Pre-discovered Areas 1 | . . . 1 . . Known Exits Taken 1 | . 1 . . . . Unknown Exits Taken 4 | 1 . 1 1 1 . Scrap Searched . | . . . . . . Spaces Dug . | . . . . . . Terrain Destroyed . | . . . . . . Melee . | . . . . . . Projectile . | . . . . . . AOE . | . . . . . . Actions | -11 -10 -10 -10 -9 -8 --------- Run | Scr Mat Min Exi Min Mat Total 1276 | 4 315 57 546 258 96 Wait 70 | . 21 . . 41 8 Move 1106 | . 252 56 541 180 77 Hop . | . . . . . . Pick Up 24 | . 4 1 5 12 2 Fast Attach 2 | . 1 . . 1 . Attach 4 | . 1 . . 1 2 Detach . | . . . . . . Swap 2 | . 1 . . 1 . Drop 8 | 4 1 . . 3 . Fire 60 | . 34 . . 19 7 Melee . | . . . . . . Ram . | . . . . . . Kick . | . . . . . . Crush . | . . . . . . Escape Stasis . | . . . . . . Rewire . | . . . . . . Trap . | . . . . . . Miscellaneous . | . . . . . . Route ------- -11/Scrapyard -10/Materials (discovered 3 exits: [*Mat] / *Min x2) -10/Mines -10/Exiles -9/Mines -8/Materials History --------- Turn | Location | Event 3 | -11/Scrapyard | Discovered new exit (range 0) 3 | -11/Scrapyard | Entered Materials 104 | -10/Materials | Discovered new exit (range 10) 173 | -10/Materials | Identified exit to Mines 300 | -10/Materials | Build established: Mutant 310 | -10/Materials | Discovered new exit (range 5) 497 | -10/Materials | Entered Mines 534 | -10/Mines | Received a Rocket Launcher from a helpful Derelict 575 | -10/Mines | Deemed a non-threat by the Exiles lab entrance 576 | -10/Mines | Discovered new exit (range 5) 582 | -10/Mines | Entered Exiles 618 | -10/Exiles | Met 8R-AWN 644 | -10/Exiles | Met EX-HEX 732 | -10/Exiles | Met EX-DEC 757 | -10/Exiles | Visited The Gauntlet 962 | -10/Exiles | Met EX-BIN 1073 | -10/Exiles | Aligned with FarCom system 1074 | -10/Exiles | Given EX-Vault access code 1109 | -10/Exiles | Opened EX-Vault 1212 | -10/Exiles | Found Chronowheel 1246 | -10/Exiles | Warned to stay clear of 0b10 Research branches 1315 | -10/Exiles | Learned location of Zion (-6) 1382 | -10/Exiles | Discovered new exit (range 14) 1399 | -10/Exiles | Left Exiles lab with Chronowheel 1399 | -10/Exiles | Entered Mines 1402 | -9/Mines | Received a Mining Laser from a helpful Derelict 1730 | -9/Mines | Discovered new exit (range 7) 1786 | -9/Mines | Entered Materials 1786 | -8/Materials | Evolved 4 slots: Propulsion x1, Utility x3 1950 | -8/Materials | Activated Chronowheel 1950 | -8/Materials | Spacetime reconverged on an earlier point 1955 | -8/Materials | Self-destructed Last Messages --------------- 01933_ Current location identified: Materials >>Trojan(Botnet) Trojan loaded successfully. Testing... Terminal linked with 0 systems. Awaiting botnet instructions. >>Trojan(Track) Trojan loaded successfully. Testing... Tracking enabled and active. >>Index(Terminals) Found 12 terminals. Downloaded coordinate data. 01940_ Connecting with Terminal... >>Trojan(Botnet) Trojan loaded successfully. Testing... Terminal linked with 1 system. Awaiting botnet instructions. 01950_ Spacetime reconverges on this point. Map ----- +----------------------------------------------------+ | ??????????????????????????????????? | | ??????????????????????????????????? | | ??????????????????????????????????? | | ??????????????????????????????????? | | ??????????????????????????????????? | | ??????????????????????????????????? | | ??????????????????????????????????? | | ??????????????????????????????????? | | ??????????????????????????????????? | | ??????????????????????????????????? | | ??????????????????????????????????? | | ??????????????????????????????????? | | ??????????????????????????????????? | | ??????????????????????????????????? | | ??????????????????????????????????? | | ???????######?????????????????????? | | ?????### [ #?????????????????????? | | ?????#"" #?????????????????????? | | ?????#"T #?????????????????????? | | ?????#"" #?????????????????????? | | ?????### #??Y???????????C??????? | | ???????# "#?????????????????????? | | ?####### T#?????????????????????? | | ?# ] ]# "#?????????????????????? | | ?# # #????????g????????????? | | ?# """ ###@### #gg??????????????? | | ?# """ + +????????????????? | | ?# """ ### ### #????????????????? | | ?# ### ###????????????????????? | | ?# !%=*# u #????????????????????? | | ??##+### ! # """ ???????????????? | | ???#!= %r + "Y" ???????????????? | | ???# ### # !???????????? | | ???# #?# #????????????????????? | | ???# #####+#######????????????????? | | ???# # #????????????????? | | ???# # #????????????????? | | ???# # [ #????????????????? | | ???# #? #????????????????? | | ???# #??? #????????????????? | | ???# #????? #????????????????? | | ???# #??????? #????????????????? | | ???# ##########+##????????????????? | | ???# #?????????????????? | | ???########## #?????????????????? | | ???########## #?????????????????? | | ???#! # #?????????????????? | | ???# # #?????????????????? | | ???# # #?????????????????? | | ???# # #?????????????????? | +----------------------------------------------------+ Best States ------------- Heat Dissipation 31 Energy Generation 14 Energy Capacity 250 Matter Stores 300 Matter Capacity 300 Sight Range 16 Terrain Scan Density 10 Resistance: KI 20 Resistance: TH 20 Resistance: EX 20 Resistance: EM 20 Resistance: I 20 Resistance: S 20 Resistance: P 20 Evasion (%) 40 Targeting Accuracy 5 Offensive Hacking 10 Item Schematics ----------------- None Robot Schematics ------------------ None Fabricated ------------ Nothing Alien Tech Used ----------------- None Achievements -------------- None Challenges ------------ None Game ------ Seed InsulationBiocellClaw Manual? 0 Play Time 00:14:47 Cumulative 108.4 hours Start 2020.05.19 @ 19:19:09 End 2020.05.19 @ 19:40:26 Sessions 1 Manual Loads 0 Difficulty Adventurer Special Mode None Game No. 74 Rogue 63 Adventurer 11 Explorer 0 Win Type - Total 1 Types 1/0/0/0/0/0/0 Lore% 44 Gallery% 55 Achievement% 48 Wizard Run 0 Options --------- ASCII 0 Keyboard 0 Movement Numpad Keybinds 0 Fullscreen 2 Font 18/X11Bold Map View 76x50 Tactical HUD 1 Map Filters NONE Filters NONE Steam 1 RUN: 76341f10-90e0-4323-be5d-5fb72a1d8c3a